[Event "LAT-ch Women 2017"]
[Site "Riga"]
[Date "2017.10.05"]
[Round "1"]
[White "Krumina, Linda"]
[Black "Dombrovska, Stefanija"]
[Result "1-0"]
[ECO "D35"]
[WhiteElo "2096"]
[BlackElo "1673"]
[Annotator "NA RC"]
[PlyCount "67"]
[EventDate "2017.??.??"]
[EventType "swiss"]
[EventCountry "LAT"]
[SourceTitle "playchess.com"]
[Source "ChessBase"]
[SourceQuality "1"]
[TimeControl "5400+30"]

1. d4 {[%emt 0:00:00]} d5 {[%emt 0:00:17]} 2. c4 {[%emt 0:00:00]} e6 {[%emt 0:00:31]} 3. Nc3 {[%emt 0:00:00]} Nf6 {[%emt 0:00:36]} 4. cxd5 {[%emt 0:00:11]} exd5 {[%emt 0:00:38]} 5. Bg5 {[%emt 0:00:36]} Be7 {[%emt 0:00:41]} 6. Qc2 {[%emt 0:00:13]} Nc6 {[%emt 0:00:50]} 7. e3 {[%emt 0:02:27]} a6 {[%emt 0:01:00]} 8. a3 {[%emt 0:03:52]} Be6 {[%emt 0:01:34]} 9. Bd3 {[%emt 0:02:43]} h6 {[%emt 0:00:30]} 10. Bh4 {[%emt 0:00:33]} Nh5 {[%emt 0:04:12]} 11. Bxe7 {[%emt 0:01:50]} Nxe7 {[%emt 0:00:53]} 12. Nf3 {[%emt 0:02:00]} Nf6 {[%emt 0:01:26]} 13. O-O {[%emt 0:07:38]} O-O {[%emt 0:00:21]} 14. Na4 {[%emt 0:04:22]} c6 {[%emt 0:08:25]} 15. Nc5 {[%emt 0:02:28]} Bc8 {[%emt 0:05:05]} 16. b4 {[%emt 0:01:22]} b6 {[%emt 0:01:01]} 17. Nb3 {[%emt 0:01:18]} Bb7 {[%emt 0:00:26]} 18. Ne5 {[%emt 0:02:18]} Qd6 {[%emt 0:02:17]} 19. Rac1 {[%emt 0:04:37]} Rfc8 {[%emt 0:00:43]} 20. f4 {[%emt 0:16:21]} Rc7 {[%emt 0:07:52]} 21. Qe2 {[%emt 0:03:08]} Rcc8 {[%emt 0:05:49]} 22. g4 {[%emt 0:05:31]} Ne4 {[%emt 0:06:02]} 23. Qg2 {[%emt 0:03:15]} f6 {[%emt 0:01:51]} 24. Bxe4 {[%emt 0:00:50]} fxe5 {[%emt 0:06:06]} 25. fxe5 {[%emt 0:00:29]} Qd7 {[%emt 0:01:29]} 26. Bf5 {[%emt 0:06:41]} Nxf5 {[%emt 0:01:12]} 27. gxf5 {[%emt 0:00:23]} Rf8 {[%emt 0:01:28]} 28. f6 {[%emt 0:03:54]} Rf7 {[%emt 0:03:08]} 29. Rf4 {[%emt 0:05:40]} Raf8 {[%emt 0:01:56]} 30. Rcf1 {[%emt 0:00:41]} Re8 {[%emt 0:10:10]} 31. Qg6 {[%emt 0:02:28]} Kh8 {[%emt 0:09:34]} 32. fxg7+ {[%emt 0:03:22]} Rxg7 {[%emt 0:01:02]} 33. Rf8+ {[%emt 0:00:07]} Rg8 {[%emt 0:01:55]} 34. Qxg8# {[%emt 0:00:08] Kxg8} 1-0

[Event "LAT-ch Women 2017"]
[Site "Riga"]
[Date "2017.10.05"]
[Round "1"]
[White "Ungure, Liga"]
[Black "Zalcmane, Vija"]
[Result "1-0"]
[ECO "C55"]
[WhiteElo "1923"]
[BlackElo "1533"]
[Annotator "NA RC"]
[PlyCount "111"]
[EventDate "2017.??.??"]
[EventType "swiss"]
[EventCountry "LAT"]
[SourceTitle "playchess.com"]
[Source "ChessBase"]
[SourceQuality "1"]
[TimeControl "5400+30"]

1. e4 {[%emt 0:00:00]} e5 {[%emt 0:00:08]} 2. Nf3 {[%emt 0:00:00]} Nc6 {[%emt 0:00:08]} 3. Bc4 {[%emt 0:00:19]} Nf6 4. d3 {[%emt 0:00:07]} Be7 {[%emt 0:01:24]} 5. c3 d6 {[%emt 0:00:56]} 6. Nbd2 {[%emt 0:01:51]} O-O {[%emt 0:01:09]} 7. Qe2 {[%emt 0:03:52]} Na5 {[%emt 0:05:21]} 8. Bb5 {[%emt 0:00:26]} Bd7 {[%emt 0:01:41]} 9. Bxd7 {[%emt 0:01:58]} Qxd7 {[%emt 0:01:38]} 10. Nf1 {[%emt 0:04:49]} c5 {[%emt 0:01:14]} 11. Ng3 {[%emt 0:01:34]} g6 {[%emt 0:03:29]} 12. Bh6 {[%emt 0:04:39]} Rfe8 {[%emt 0:01:34]} 13. h3 {[%emt 0:02:48]} b5 {[%emt 0:07:37]} 14. O-O {[%emt 0:03:09]} Kh8 {[%emt 0:01:41]} 15. Nh2 {[%emt 0:08:44]} Bf8 {[%emt 0:11:54]} 16. Bxf8 {[%emt 0:04:11]} Rxf8 {[%emt 0:00:18]} 17. f4 {[%emt 0:08:32]} exf4 {[%emt 0:07:04]} 18. Rxf4 {[%emt 0:00:14]} Qe6 {[%emt 0:01:13]} 19. Qf2 {[%emt 0:06:17]} Nd7 {[%emt 0:06:14]} 20. d4 {[%emt 0:03:54]} Rac8 {[%emt 0:09:40]} 21. Nf3 {[%emt 0:05:07]} a6 {[%emt 0:08:13]} 22. Ng5 {[%emt 0:06:35]} Qe7 {[%emt 0:02:49]} 23. Nxf7+ {[%emt 0:02:07]} Kg7 {[%emt 0:00:59]} 24. Rf1 {[%emt 0:01:55]} Nc6 {[%emt 0:02:21]} 25. Nh5+ {[%emt 0:09:11]} Kg8 {[%emt 0:01:26]} 26. Nh6+ {[%emt 0:05:54]} Kh8 {[%emt 0:00:18]} 27. Rf7 {[%emt 0:03:39]} Rxf7 {[%emt 0:01:52]} 28. Nxf7+ {[%emt 0:00:37]} Kg8 {[%emt 0:00:48]} 29. Qg3 {[%emt 0:04:57]} cxd4 {[%emt 0:03:00]} 30. Nxd6 {[%emt 0:01:29]} Rf8 {[%emt 0:01:48]} 31. Nf5 {[%emt 0:04:22]} Qc5 {[%emt 0:07:12]} 32. Kh1 {[%emt 0:01:50]} dxc3 {[%emt 0:00:39]} 33. bxc3 {[%emt 0:00:11]} Kh8 {[%emt 0:02:42]} 34. Rd1 {[%emt 0:00:14]} Nf6 {[%emt 0:07:04]} 35. Nxf6 {[%emt 0:00:44]} Rxf6 {[%emt 0:00:33]} 36. Nh6 {[%emt 0:01:07]} Qf8 {[%emt 0:00:22]} 37. Ng4 {[%emt 0:00:17]} Rf1+ {[%emt 0:01:42]} 38. Rxf1 {[%emt 0:00:01]} Qxf1+ {[%emt 0:00:18]} 39. Kh2 {[%emt 0:00:01]} Qf7 {[%emt 0:00:34]} 40. Qd6 {[%emt 0:00:21]} Ne7 {[%emt 0:00:33]} 41. Nh6 {[%emt 0:01:16]} Qf8 {[%emt 0:00:33]} 42. Ng4 {[%emt 0:00:15]} Kg7 {[%emt 0:00:29]} 43. Qe5+ {[%emt 0:00:55]} Kg8 {[%emt 0:00:39]} 44. Nf6+ {[%emt 0:00:19]} Kf7 {[%emt 0:00:41]} 45. Nxh7 {[%emt 0:00:34]} Qg7 {[%emt 0:00:25]} 46. Ng5+ {[%emt 0:00:24]} Kg8 {[%emt 0:00:19]} 47. Qb8+ {[%emt 0:00:44]} Qf8 {[%emt 0:00:15]} 48. Qxf8+ {[%emt 0:00:14]} Kxf8 {[%emt 0:00:05]} 49. Ne6+ {[%emt 0:00:09]} Kf7 {[%emt 0:00:48]} 50. Nc7 {[%emt 0:00:08]} Nc8 {[%emt 0:00:48]} 51. Nxa6 {[%emt 0:00:11]} Kf6 {[%emt 0:00:27]} 52. Kg3 {[%emt 0:00:15]} Nd6 {[%emt 0:00:25]} 53. Kf4 {[%emt 0:00:39]} g5+ {[%emt 0:00:19]} 54. Kf3 {[%emt 0:00:32]} Ke5 {[%emt 0:00:21]} 55. Nc5 {[%emt 0:00:14]} Nc4 {[%emt 0:00:46]} 56. Nd3+ {[%emt 0:00:39]} 1-0

[Event "LAT-ch Women 2017"]
[Site "Riga"]
[Date "2017.10.05"]
[Round "1"]
[White "Maklakova, Nellija"]
[Black "Ivanova, Katrina Telma"]
[Result "1-0"]
[ECO "A13"]
[WhiteElo "1800"]
[BlackElo "1306"]
[Annotator "NA RC"]
[PlyCount "47"]
[EventDate "2017.??.??"]
[EventType "swiss"]
[EventCountry "LAT"]
[SourceTitle "playchess.com"]
[Source "ChessBase"]
[SourceQuality "1"]
[TimeControl "5400+30"]

1. c4 {[%emt 0:00:00]} e6 {[%emt 0:00:22]} 2. g3 {[%emt 0:00:15]} d5 {[%emt 0:00:54]} 3. cxd5 {[%emt 0:01:14]} exd5 {[%emt 0:00:32]} 4. Bg2 {[%emt 0:00:24]} Nf6 {[%emt 0:01:36]} 5. Nf3 {[%emt 0:00:46]} Be7 {[%emt 0:03:14]} 6. O-O {[%emt 0:01:27]} Nc6 {[%emt 0:03:43]} 7. a3 {[%emt 0:06:51]} O-O {[%emt 0:04:55]} 8. b4 {[%emt 0:01:25]} a6 {[%emt 0:01:56]} 9. Bb2 {[%emt 0:01:04]} h6 {[%emt 0:05:04]} 10. d3 {[%emt 0:02:09]} Be6 {[%emt 0:10:45]} 11. Nbd2 {[%emt 0:02:26]} Rc8 {[%emt 0:08:19]} 12. Rc1 {[%emt 0:01:21]} Re8 {[%emt 0:10:50]} 13. Nb3 {[%emt 0:02:40]} Nh7 {[%emt 0:20:33]} 14. Nc5 {[%emt 0:04:31]} Bxc5 {[%emt 0:02:36]} 15. Rxc5 {[%emt 0:01:02]} Nf6 {[%emt 0:09:00]} 16. Qa1 {[%emt 0:08:59]} Nh5 {[%emt 0:07:13]} 17. Rfc1 {[%emt 0:02:11]} Kh7 {[%emt 0:05:14]} 18. b5 {[%emt 0:04:03]} axb5 {[%emt 0:00:27]} 19. Rxb5 {[%emt 0:00:11]} Ne7 {[%emt 0:01:59]} 20. Rxb7 {[%emt 0:00:30]} c6 {[%emt 0:00:31]} 21. Bd4 {[%emt 0:03:15]} Rg8 {[%emt 0:00:27]} 22. a4 {[%emt 0:00:52]} Rc7 {[%emt 0:00:32]} 23. Rb3 {[%emt 0:03:39]} Ra7 {[%emt 0:00:30]} 24. Bxa7 {[%emt 0:00:12]} 1-0

[Event "LAT-ch Women 2017"]
[Site "Riga"]
[Date "2017.10.05"]
[Round "1"]
[White "Osobskaja, Zinaida"]
[Black "Limanovska, Elizabete"]
[Result "0-1"]
[ECO "B50"]
[WhiteElo "1646"]
[BlackElo "1972"]
[Annotator "NA RC"]
[PlyCount "98"]
[EventDate "2017.??.??"]
[EventType "swiss"]
[EventCountry "LAT"]
[SourceTitle "playchess.com"]
[Source "ChessBase"]
[SourceQuality "1"]
[TimeControl "5400+30"]

1. e4 {[%emt 0:00:21]} c5 {[%emt 0:00:02]} 2. Nf3 {[%emt 0:00:11]} d6 {[%emt 0:00:03]} 3. c4 {[%emt 0:00:25]} Nc6 {[%emt 0:00:52]} 4. d4 {[%emt 0:00:14]} cxd4 {[%emt 0:00:23]} 5. Nxd4 {[%emt 0:00:11]} g6 {[%emt 0:00:38]} 6. Nc3 {[%emt 0:00:48]} Bg7 {[%emt 0:00:33]} 7. Be3 {[%emt 0:01:30]} Nf6 {[%emt 0:01:02]} 8. h3 {[%emt 0:00:22]} O-O {[%emt 0:04:57]} 9. Rc1 {[%emt 0:01:25]} Qa5 {[%emt 0:08:20]} 10. Bd3 {[%emt 0:07:12]} Ne5 {[%emt 0:09:30]} 11. b3 {[%emt 0:00:47]} Nxd3+ {[%emt 0:04:41]} 12. Qxd3 {[%emt 0:00:16]} Bd7 {[%emt 0:03:32]} 13. O-O {[%emt 0:00:35]} Rfc8 {[%emt 0:03:41]} 14. Nde2 {[%emt 0:01:50]} Bc6 {[%emt 0:10:09]} 15. a4 {[%emt 0:02:11]} Nd7 {[%emt 0:05:23]} 16. Rb1 {[%emt 0:05:43]} Qd8 {[%emt 0:03:26]} 17. Rfd1 {[%emt 0:01:18]} Qe8 {[%emt 0:04:09]} 18. f3 {[%emt 0:03:16]} Nc5 {[%emt 0:01:13]} 19. Qc2 {[%emt 0:00:28]} a5 {[%emt 0:04:39]} 20. Nd5 {[%emt 0:01:43]} Bxd5 {[%emt 0:02:04]} 21. Rxd5 {[%emt 0:00:43]} Rc6 {[%emt 0:12:56]} 22. Nc3 {[%emt 0:04:10]} e6 {[%emt 0:02:45]} 23. Rdd1 {[%emt 0:00:22]} Na6 {[%emt 0:03:12]} 24. Nb5 {[%emt 0:00:08]} d5 {[%emt 0:03:29]} 25. Qe2 {[%emt 0:02:02]} dxc4 {[%emt 0:01:53]} 26. Nd6 {[%emt 0:00:48]} Qe7 {[%emt 0:00:51]} 27. Nxc4 {[%emt 0:00:12]} Nc5 {[%emt 0:02:42]} 28. Qd2 {[%emt 0:04:20]} Nxb3 {[%emt 0:02:22]} 29. Rxb3 {[%emt 0:03:24]} Rxc4 {[%emt 0:00:05]} 30. Qd7 {[%emt 0:00:09]} Qxd7 {[%emt 0:02:17]} 31. Rxd7 {[%emt 0:00:11]} Rb4 {[%emt 0:01:59]} 32. Rxb7 {[%emt 0:00:55]} Bf8 {[%emt 0:00:39]} 33. R3xb4 {[%emt 0:08:25]} axb4 {[%emt 0:00:06]} 34. Rb5 {[%emt 0:05:04]} Rxa4 {[%emt 0:01:54]} 35. Rb8 {[%emt 0:00:03]} Kg7 {[%emt 0:00:07]} 36. Bd4+ {[%emt 0:00:46]} f6 {[%emt 0:00:19]} 37. Bxf6+ {[%emt 0:00:49]} Kxf6 {[%emt 0:00:03]} 38. Rxf8+ {[%emt 0:00:16]} Ke5 {[%emt 0:00:04]} 39. Kf2 {[%emt 0:01:15]} Kd4 {[%emt 0:00:07]} 40. Rb8 {[%emt 0:01:16]} Ra2+ {[%emt 0:00:41]} 41. Kg3 {[%emt 0:00:03]} Kc3 {[%emt 0:00:07]} 42. Rb6 {[%emt 0:00:54]} b3 {[%emt 0:02:49]} 43. Rxe6 {[%emt 0:00:49]} Ra4 {[%emt 0:00:37]} 44. Rc6+ {[%emt 0:06:04]} Rc4 {[%emt 0:00:07]} 45. Rb6 {[%emt 0:00:22]} Rb4 {[%emt 0:00:02]} 46. Rc6+ {[%emt 0:00:12]} Kd2 {[%emt 0:00:06]} 47. Kf2 {[%emt 0:00:58]} b2 {[%emt 0:00:18]} 48. Rd6+ {[%emt 0:00:18]} Kc2 {[%emt 0:00:05]} 49. Rc6+ {[%emt 0:00:18]} Kb3 {[%emt 0:00:04]} 0-1

[Event "LAT-ch Women 2017"]
[Site "Riga"]
[Date "2017.10.05"]
[Round "1"]
[White "Ter-Avetisjana, Agnesa Stepania"]
[Black "Parhomenko, Margarita"]
[Result "0-1"]
[ECO "B01"]
[WhiteElo "1319"]
[BlackElo "1919"]
[Annotator "NA RC"]
[PlyCount "126"]
[EventDate "2017.??.??"]
[EventType "swiss"]
[EventCountry "LAT"]
[SourceTitle "playchess.com"]
[Source "ChessBase"]
[SourceQuality "1"]
[TimeControl "5400+30"]

1. e4 {[%emt 0:00:00]} d5 {[%emt 0:00:29]} 2. exd5 {[%emt 0:00:00]} Qxd5 {[%emt 0:00:05]} 3. Nc3 {[%emt 0:00:00]} Qa5 {[%emt 0:00:09]} 4. d4 {[%emt 0:00:00]} Nf6 {[%emt 0:00:13]} 5. Nf3 {[%emt 0:01:37]} c6 {[%emt 0:00:05]} 6. Bd2 {[%emt 0:00:45]} Bg4 {[%emt 0:00:31]} 7. Ne4 {[%emt 0:01:35]} Qc7 {[%emt 0:00:19]} 8. Nxf6+ {[%emt 0:00:07]} gxf6 {[%emt 0:00:30]} 9. h3 {[%emt 0:00:12]} Bh5 {[%emt 0:02:03]} 10. g4 {[%emt 0:01:28]} Bg6 {[%emt 0:00:08]} 11. Nh4 {[%emt 0:00:24]} Be4 {[%emt 0:03:06]} 12. Bg2 {[%emt 0:00:40]} Bxg2 {[%emt 0:01:58]} 13. Nxg2 {[%emt 0:00:06]} Nd7 {[%emt 0:01:49]} 14. Qf3 {[%emt 0:02:34]} O-O-O {[%emt 0:03:29]} 15. O-O-O {[%emt 0:00:25]} Bg7 {[%emt 0:05:38]} 16. Qa3 {[%emt 0:01:40]} Nb6 {[%emt 0:03:29]} 17. Qxa7 {[%emt 0:01:18]} Nc4 {[%emt 0:05:35]} 18. Bc3 {[%emt 0:01:20]} Rd5 {[%emt 0:09:10]} 19. b3 {[%emt 0:08:18]} Nd6 {[%emt 0:13:26]} 20. Ne3 {[%emt 0:01:12]} Nb5 {[%emt 0:07:21]} 21. Nxd5 {[%emt 0:01:18]} cxd5 {[%emt 0:00:19]} 22. Qa8+ {[%emt 0:01:12]} Kd7 {[%emt 0:00:12]} 23. Qa4 {[%emt 0:00:22]} Qc6 {[%emt 0:04:24]} 24. Bb2 {[%emt 0:06:48]} Rc8 {[%emt 0:14:41]} 25. b4 {[%emt 0:05:00]} Bh6+ {[%emt 0:00:29]} 26. Rd2 {[%emt 0:01:03]} Bxd2+ {[%emt 0:05:43]} 27. Kxd2 {[%emt 0:00:08]} Nxd4 {[%emt 0:05:49]} 28. Qxc6+ {[%emt 0:00:13]} Nxc6 {[%emt 0:00:05]} 29. a3 {[%emt 0:01:19]} b5 {[%emt 0:00:18]} 30. Ke3 {[%emt 0:01:41]} Nd8 {[%emt 0:03:23]} 31. c3 {[%emt 0:00:37]} Nb7 {[%emt 0:00:14]} 32. Rd1 {[%emt 0:00:09]} Ke6 {[%emt 0:01:41]} 33. f4 {[%emt 0:01:07]} Rc4 {[%emt 0:02:51]} 34. Kf3 {[%emt 0:04:55]} Re4 {[%emt 0:02:58]} 35. f5+ {[%emt 0:00:59]} Kd6 {[%emt 0:00:08]} 36. Bc1 {[%emt 0:01:46]} e5 {[%emt 0:00:41]} 37. fxe6 {[%emt 0:00:47]} fxe6 {[%emt 0:00:09]} 38. Bf4+ {[%emt 0:00:23]} e5 {[%emt 0:00:12]} 39. Bd2 {[%emt 0:01:03]} Ke6 {[%emt 0:00:38]} 40. Rg1 {[%emt 0:01:52]} Nd6 {[%emt 0:03:57]} 41. Bc1 {[%emt 0:01:18]} Rc4 {[%emt 0:00:25]} 42. Bb2 {[%emt 0:00:13]} Rf4+ {[%emt 0:01:01]} 43. Kg3 {[%emt 0:00:30]} Ne4+ {[%emt 0:00:21]} 44. Kh4 {[%emt 0:00:13]} Rf2 {[%emt 0:00:46]} 45. Rb1 {[%emt 0:00:20]} Rh2 {[%emt 0:00:25]} 46. a4 {[%emt 0:03:03]} bxa4 {[%emt 0:01:06]} 47. b5 {[%emt 0:00:10]} Kd7 {[%emt 0:00:21]} 48. b6 {[%emt 0:00:23]} Kc6 {[%emt 0:00:22]} 49. Ba3 {[%emt 0:00:23]} Kb7 {[%emt 0:00:08]} 50. Be7 {[%emt 0:00:50]} Rc2 {[%emt 0:01:17]} 51. Ra1 {[%emt 0:01:44]} Rxc3 {[%emt 0:00:41]} 52. Rxa4 {[%emt 0:00:07]} Kxb6 {[%emt 0:00:07]} 53. Bd8+ {[%emt 0:00:22]} Kb5 {[%emt 0:00:43]} 54. Ra5+ {[%emt 0:00:14]} Kc4 {[%emt 0:00:19]} 55. Ra4+ {[%emt 0:00:17]} Kb3 {[%emt 0:00:15]} 56. Ra5 {[%emt 0:00:12]} d4 {[%emt 0:00:14]} 57. Rb5+ {[%emt 0:00:13]} Kc2 {[%emt 0:00:49]} 58. Ba5 {[%emt 0:00:23]} Rf3 {[%emt 0:00:32]} 59. Rb7 {[%emt 0:00:26]} Ng5 {[%emt 0:00:14]} 60. Rc7+ {[%emt 0:00:30]} Kd1 {[%emt 0:00:13]} 61. Rc1+ {[%emt 0:00:38]} Kxc1 {[%emt 0:00:11]} 62. Bd2+ {[%emt 0:00:08]} Kxd2 {[%emt 0:00:11]} 63. Kh5 {[%emt 0:00:09]} Rxh3# 0-1

[Event "LAT-ch Women 2017"]
[Site "Riga"]
[Date "2017.10.06"]
[Round "2"]
[White "Limanovska, Elizabete"]
[Black "Golsta, Ramona"]
[Result "1/2-1/2"]
[ECO "B30"]
[WhiteElo "1972"]
[BlackElo "1719"]
[Annotator "NA RC"]
[PlyCount "59"]
[EventDate "2017.??.??"]
[EventType "swiss"]
[EventCountry "LAT"]
[SourceTitle "playchess.com"]
[Source "ChessBase"]
[SourceQuality "1"]
[TimeControl "5400+30"]

1. e4 {[%emt 0:03:08]} c5 {[%emt 0:00:14]} 2. Nf3 {[%emt 0:00:03]} Nc6 {[%emt 0:00:20]} 3. Bb5 {[%emt 0:00:05]} d6 {[%emt 0:01:08]} 4. O-O {[%emt 0:00:13]} Bd7 {[%emt 0:00:34]} 5. Re1 {[%emt 0:00:06]} Nf6 {[%emt 0:01:44]} 6. c3 {[%emt 0:00:40]} a6 {[%emt 0:00:56]} 7. Bf1 {[%emt 0:00:36]} Bg4 {[%emt 0:00:43]} 8. d4 {[%emt 0:21:31]} cxd4 {[%emt 0:19:16]} 9. cxd4 {[%emt 0:00:18]} e6 {[%emt 0:11:17] B51: Sicilian: Moscow Variation (3 Bb5+) without 3...Bd7} 10. d5 {[%emt 0:12:15]} Ne5 {[%emt 0:02:19]} 11. dxe6 $146 {[%emt 0:07:18]} ({Predecessor:} 11. Be2 Bxf3 12. Bxf3 {½-½ (12) Sax,G (2568)-Akopian,V (2705) Saint Vincent 2005}) 11... fxe6 {[%emt 0:06:31]} 12. Qb3 {[%emt 0:03:34]} Bxf3 {[%emt 0:03:24]} 13. gxf3 {[%emt 0:00:18]} Qd7 {[%emt 0:03:11]} 14. f4 {[%emt 0:18:08]} Nc6 {[%emt 0:03:09]} 15. Bh3 {[%emt 0:04:36]} Nd8 {[%emt 0:10:32]} 16. Nc3 {[%emt 0:02:24]} Qf7 {[%emt 0:02:12]} 17. Kh1 {[%emt 0:05:01]} Be7 {[%emt 0:01:11]} 18. Qa4+ {[%emt 0:06:14]} Nc6 {[%emt 0:04:24]} 19. e5 {[%emt 0:01:25]} dxe5 {[%emt 0:04:40]} 20. Rxe5 {[%emt 0:00:54]} Rd8 {[%emt 0:05:25]} 21. Bxe6 {[%emt 0:03:40]} Qg6 {[%emt 0:00:23]} 22. Bf5 {[%emt 0:01:41]} Qh6 {[%emt 0:01:45]} 23. Re3 {[%emt 0:05:17]} Qh4 {[%emt 0:03:30]} 24. Qc2 {[%emt 0:01:19] [#]} Nd4 $1 {[%emt 0:02:30]} 25. Qa4+ {[%emt 0:00:56] [#]} (25. Qd3 $17) 25... b5 $1 26. Qxa6 {[%emt 0:00:33]} Qxf2 {[%emt 0:03:19]} 27. Bd3 {[%emt 0:00:40]} ({Don't go for} 27. Bh3 $2 {[#]} Ng4 $1 $19 {[%mdl 512]}) 27... Ng4 {[%emt 0:01:19]} 28. Rh3 {[%emt 0:00:31]} Qe1+ {[%emt 0:04:40]} 29. Kg2 {[%emt 0:00:03]} Qf2+ $11 {[%emt 0:00:13]} (29... Kf7 $19 30. Ne4 Ne2) 30. Kh1 {[%emt 0:00:02]} 1/2-1/2

[Event "LAT-ch Women 2017"]
[Site "Riga"]
[Date "2017.10.06"]
[Round "2"]
[White "Sarnovska, Eira"]
[Black "Ungure, Liga"]
[Result "0-1"]
[ECO "A05"]
[WhiteElo "1727"]
[BlackElo "1923"]
[Annotator "NA RC"]
[PlyCount "98"]
[EventDate "2017.??.??"]
[EventType "swiss"]
[EventCountry "LAT"]
[SourceTitle "playchess.com"]
[Source "ChessBase"]
[SourceQuality "1"]
[TimeControl "5400+30"]

1. Nf3 {[%emt 0:00:00]} Nf6 {[%emt 0:00:05]} 2. g3 {[%emt 0:00:00]} g6 {[%emt 0:00:15]} 3. Bg2 {[%emt 0:00:16]} Bg7 {[%emt 0:00:06]} 4. c4 {[%emt 0:00:05]} O-O {[%emt 0:01:09]} 5. Nc3 {[%emt 0:02:43]} d6 {[%emt 0:00:25]} 6. O-O {[%emt 0:00:24]} e5 {[%emt 0:00:27]} 7. d3 {[%emt 0:00:18]} Nc6 {[%emt 0:01:05]} 8. Rb1 {[%emt 0:01:09]} h6 {[%emt 0:06:05]} 9. b4 {[%emt 0:03:03]} a6 {[%emt 0:01:16]} 10. a4 {[%emt 0:04:13] A26: English Opening vs King's Indian with ...Nc6 and d3} Be6 {[%emt 0:07:34]} (10... Ne7 11. Ba3 c6 12. c5 Re8 13. e4 Bg4 14. Qb3 Nd7 15. Nd2 Nc8 16. Qc2 Bf8 17. cxd6 Nxd6 {0-1 (56) Vachier Lagrave,M (2742)-Aronian,L (2795) Bilbao 2013}) 11. Qc2 $146 {[%emt 0:08:46]} ({Predecessor:} 11. b5 axb5 12. axb5 Ne7 13. Bb2 Nd7 14. Nd2 c6 15. Ra1 Qc7 16. Qb1 Nb6 17. Qc2 f5 18. Nb3 c5 19. Ra5 e4 20. Rfa1 Rxa5 21. Nxa5 Kh7 22. dxe4 Nxc4 23. Nxc4 Bxc4 24. exf5 Nxf5 {0-1 (43) Zhao,X (2538)-Dzagnidze,N (2541) Lopota 2014}) 11... a5 {[%emt 0:05:20]} 12. b5 {[%emt 0:03:01]} Nb4 {[%emt 0:00:26]} 13. Qd2 {[%emt 0:01:14]} c5 {[%emt 0:02:44]} 14. Bb2 {[%emt 0:13:06]} Nd7 {[%emt 0:05:48]} 15. Ne1 {[%emt 0:05:20]} Rb8 {[%emt 0:03:22]} 16. f4 {[%emt 0:08:35]} f5 {[%emt 0:09:58]} 17. Nc2 {[%emt 0:12:00]} Nb6 {[%emt 0:07:00]} 18. e4 {[%emt 0:06:18]} exf4 19. Rxf4 {[%emt 0:00:50]} Qg5 {[%emt 0:23:20]} 20. Nxb4 axb4 {[%emt 0:02:27]} 21. Ne2 {[%emt 0:11:28]} Nxa4 {[%emt 0:03:44]} 22. Bxg7 Kxg7 {[%emt 0:00:02]} 23. Qc2 {[%emt 0:06:08]} Nb6 {[%emt 0:00:59]} 24. Ra1 {[%emt 0:00:41]} Qf6 {[%emt 0:02:03]} 25. Qd1 {[%emt 0:03:07]} g5 {[%emt 0:04:01]} 26. Rf1 {[%emt 0:00:23]} Qe5 {[%emt 0:00:57]} 27. exf5 Bxf5 {[%emt 0:01:56]} 28. Qd2 {[%emt 0:05:12]} Rbe8 {[%emt 0:03:11]} 29. Rae1 {[%emt 0:00:33]} Qe3+ {[%emt 0:01:27]} 30. Qxe3 {[%emt 0:00:06]} Rxe3 {[%emt 0:00:02]} 31. Bxb7 {[%emt 0:01:51]} (31. Nc1 $142 Rxe1 32. Rxe1) 31... Bxd3 {[%emt 0:01:18]} 32. Rxf8 {[%emt 0:00:46]} Kxf8 {[%emt 0:00:26]} 33. Kf2 {[%emt 0:00:47]} Rxe2+ {[%emt 0:00:27]} 34. Rxe2 {[%emt 0:00:06]} Bxe2 {[%emt 0:00:06]} 35. Kxe2 {[%emt 0:00:05]} Nxc4 {[%emt 0:00:35]} 36. Kd3 {[%emt 0:00:30]} Nb6 {[%emt 0:00:31]} 37. Be4 {[%emt 0:01:16]} Ke7 {[%emt 0:00:23]} 38. g4 {[%emt 0:00:26]} Kf6 {[%emt 0:00:10]} 39. Bh7 {[%emt 0:00:38]} Ke5 {[%emt 0:00:15]} 40. Ke3 {[%emt 0:00:47]} c4 {[%emt 0:01:23]} 41. Bf5 {[%emt 0:00:59]} Kd5 {[%emt 0:01:08]} 42. Bg6 {[%emt 0:01:30]} Kc5 {[%emt 0:00:09]} 43. Be8 {[%emt 0:00:07]} Nd5+ $19 {[%emt 0:00:34]} 44. Kd2 {[%emt 0:00:32]} Nc7 {[%emt 0:00:06]} 45. Bd7 {[%emt 0:00:34]} Nxb5 {[%emt 0:00:13]} 46. Bf5 {[%emt 0:00:22]} Nd4 {[%emt 0:00:13]} 47. Bg6 {[%emt 0:00:12]} b3 {[%emt 0:01:27]} 48. Kc3 {[%emt 0:00:13]} Nb5+ {[%emt 0:00:15]} 49. Kb2 {[%emt 0:00:07]} Kb4 {[%emt 0:00:23]} 0-1

[Event "LAT-ch Women 2017"]
[Site "Riga"]
[Date "2017.10.06"]
[Round "2"]
[White "Golsta, Madara"]
[Black "Vainovska, Valentina"]
[Result "0-1"]
[ECO "C48"]
[WhiteElo "1716"]
[BlackElo "1676"]
[Annotator "NA RC"]
[PlyCount "69"]
[EventDate "2017.??.??"]
[EventType "swiss"]
[EventCountry "LAT"]
[SourceTitle "playchess.com"]
[Source "ChessBase"]
[SourceQuality "1"]
[TimeControl "5400+30"]

1. e4 {[%emt 0:00:00]} e5 {[%emt 0:00:29]} 2. Nf3 {[%emt 0:00:33]} Nc6 {[%emt 0:00:40]} 3. Nc3 {[%emt 0:01:21]} Nf6 {[%emt 0:04:38]} 4. Bb5 {[%emt 0:01:10]} d6 {[%emt 0:04:25]} 5. d4 {[%emt 0:00:50]} Bd7 {[%emt 0:00:47]} 6. d5 {[%emt 0:06:09]} Ne7 {[%emt 0:02:20]} 7. Bc4 {[%emt 0:01:54]} Ng6 {[%emt 0:02:57]} 8. h3 {[%emt 0:04:58]} Be7 {[%emt 0:00:59]} 9. O-O {[%emt 0:00:26]} O-O {[%emt 0:02:15]} 10. Be3 {[%emt 0:03:41]} a6 {[%emt 0:06:22]} 11. a4 {[%emt 0:02:50]} Nh5 {[%emt 0:05:20]} 12. Bd3 {[%emt 0:03:41]} Nhf4 {[%emt 0:00:37]} 13. Ne2 {[%emt 0:00:38]} Nxd3 {[%emt 0:15:13]} 14. Qxd3 {[%emt 0:00:31]} f5 {[%emt 0:00:20]} 15. exf5 {[%emt 0:02:56]} Bxf5 {[%emt 0:02:25]} 16. Qc4 {[%emt 0:00:59]} Bxh3 {[%emt 0:03:41]} 17. Ra3 {[%emt 0:08:19]} Qd7 {[%emt 0:03:35]} 18. Nh2 {[%emt 0:07:10]} Bf5 {[%emt 0:07:48]} 19. g4 {[%emt 0:01:38]} b5 {[%emt 0:00:21]} 20. Qb4 {[%emt 0:03:56]} Bxc2 {[%emt 0:07:18]} 21. a5 {[%emt 0:02:28]} Nh4 {[%emt 0:03:46]} 22. Qd2 {[%emt 0:11:47]} Bg6 {[%emt 0:08:34]} 23. Bg5 {[%emt 0:01:08]} h6 {[%emt 0:10:39]} 24. Bxe7 Qxe7 {[%emt 0:00:09]} 25. Rc3 {[%emt 0:04:41]} Rac8 {[%emt 0:02:27]} 26. Ng3 {[%emt 0:00:49]} Rf4 {[%emt 0:00:54]} 27. Re1 {[%emt 0:01:45]} Qf7 {[%emt 0:00:41]} 28. Rc6 {[%emt 0:05:17]} Rd4 {[%emt 0:01:26]} 29. Qe3 {[%emt 0:01:18]} Qxd5 {[%emt 0:00:21]} 30. f3 {[%emt 0:01:44]} Qxc6 {[%emt 0:00:22]} 31. Qf2 {[%emt 0:01:19]} Rf4 {[%emt 0:01:03]} 32. Re3 {[%emt 0:00:33]} Rcf8 {[%emt 0:00:25]} 33. Rc3 {[%emt 0:00:27]} Qd5 {[%emt 0:00:45]} 34. Rxc7 {[%emt 0:01:56]} Nxf3+ {[%emt 0:00:26]} 35. Nxf3 {[%emt 0:00:17]} 0-1